[Event "Titled Tuesday Blitz April 05 Early 2022"]
[White "Sahil, Tickoo"]
[Black "Girinath, P.D.S."]
[WhiteFideId "5019710"]
[BlackFideId "5000572"]
[WhiteElo "2099"]
[BlackElo "2369"]
[Result "0-1"]
[Round "07"]
[TimeControl "180+1"]
[Date "2022.04.05"]
[WhiteClock "0:00:28"]
[BlackClock "0:00:10"]

1. d4 {[%clk 0:03:00]}  Nf6 {[%clk 0:02:37]} 2. Bf4 {[%clk 0:02:52]}  g6 {[%clk 0:02:30]} 3. e3 {[%clk 0:02:51]}  Bg7 {[%clk 0:02:30]} 4. h4 {[%clk 0:02:39]}  d6 {[%clk 0:02:31]} 5. Bd3 {[%clk 0:02:36]}  h6 {[%clk 0:02:27]} 6. Nf3 {[%clk 0:02:29]}  Nc6 {[%clk 0:02:24]} 7. c3 {[%clk 0:02:24]}  Bg4 {[%clk 0:02:17]} 8. Bh2 {[%clk 0:02:20]}  O-O {[%clk 0:02:03]} 9. Be2 {[%clk 0:02:17]}  Re8 {[%clk 0:01:57]} 10. Nbd2 {[%clk 0:02:14]}  e5 {[%clk 0:01:56]} 11. dxe5 {[%clk 0:02:13]}  dxe5 {[%clk 0:01:57]} 12. Nc4 {[%clk 0:02:06]}  e4 {[%clk 0:01:39]} 13. Qxd8 {[%clk 0:02:03]}  Raxd8 {[%clk 0:01:34]} 14. Nd4 {[%clk 0:02:03]}  Nxd4 {[%clk 0:01:22]} 15. cxd4 {[%clk 0:02:01]}  Bxe2 {[%clk 0:01:13]} 16. Kxe2 {[%clk 0:01:50]}  Nd5 {[%clk 0:01:12]} 17. Be5 {[%clk 0:01:43]}  Bxe5 {[%clk 0:00:55]} 18. Nxe5 {[%clk 0:01:44]}  c5 {[%clk 0:00:54]} 19. Rhd1 {[%clk 0:01:27]}  cxd4 {[%clk 0:00:53]} 20. exd4 {[%clk 0:01:26]}  Nf4+ {[%clk 0:00:52]} 21. Kf1 {[%clk 0:01:24]}  f6 {[%clk 0:00:49]} 22. Nc4 {[%clk 0:01:13]}  Nd3 {[%clk 0:00:41]} 23. f3 {[%clk 0:01:01]}  Rxd4 {[%clk 0:00:32]} 24. fxe4 {[%clk 0:00:38]}  Rexe4 {[%clk 0:00:32]} 25. Nd2 {[%clk 0:00:33]}  Rxh4 {[%clk 0:00:23]} 26. Nf3 {[%clk 0:00:31]}  Rh1+ {[%clk 0:00:19]} 27. Ke2 {[%clk 0:00:24]}  Nf4+ {[%clk 0:00:18]} 28. Ke3 {[%clk 0:00:19]}  Rhxd1 {[%clk 0:00:17]} 29. Rxd1 {[%clk 0:00:19]}  Rxd1 {[%clk 0:00:17]} 30. Kxf4 {[%clk 0:00:20]}  Rb1 {[%clk 0:00:15]} 31. b3 {[%clk 0:00:20]}  Rb2 {[%clk 0:00:15]} 32. g4 {[%clk 0:00:21]}  Rxa2 {[%clk 0:00:15]} 33. Nd4 {[%clk 0:00:21]}  Rb2 {[%clk 0:00:14]} 34. Ke4 {[%clk 0:00:20]}  Kf7 {[%clk 0:00:12]} 35. Kd3 {[%clk 0:00:20]}  h5 {[%clk 0:00:12]} 36. Kc3 {[%clk 0:00:21]}  Rg2 {[%clk 0:00:11]} 37. gxh5 {[%clk 0:00:21]}  gxh5 {[%clk 0:00:12]} 38. Nb5 {[%clk 0:00:22]}  h4 {[%clk 0:00:11]} 39. Nd6+ {[%clk 0:00:23]}  Kg6 {[%clk 0:00:12]} 40. Nxb7 {[%clk 0:00:22]}  h3 {[%clk 0:00:12]} 41. Nc5 {[%clk 0:00:21]}  h2 {[%clk 0:00:09]} 42. Ne6 {[%clk 0:00:22]}  h1=Q {[%clk 0:00:08]} 43. Nf4+ {[%clk 0:00:20]}  Kf5 {[%clk 0:00:09]} 44. Nxg2 {[%clk 0:00:21]}  Qxg2 {[%clk 0:00:09]} 45. Kb4 {[%clk 0:00:21]}  Qe4+ {[%clk 0:00:10]} 46. Ka3 {[%clk 0:00:22]}  Qb7 {[%clk 0:00:11]} 47. b4 {[%clk 0:00:23]}  Qb6 {[%clk 0:00:12]} 48. Ka4 {[%clk 0:00:24]}  Ke4 {[%clk 0:00:12]} 49. b5 {[%clk 0:00:25]}  Kd4 {[%clk 0:00:13]} 50. Kb4 {[%clk 0:00:26]}  f5 {[%clk 0:00:14]} 51. Ka3 {[%clk 0:00:27]}  Qxb5 {[%clk 0:00:13]} 52. Ka2 {[%clk 0:00:27]}  Kc3 {[%clk 0:00:10]} 53. Ka1 {[%clk 0:00:28]}  Qb2# {[%clk 0:00:10]} 0-1


[Site "https://www.chess.com"]

[Event "Titled Tuesday Blitz April 05 Early 2022"]
[White "Sebag, Marie"]
[Black "Lakshmi C"]
[WhiteFideId "617822"]
[BlackFideId "25035347"]
[WhiteElo "2440"]
[BlackElo "1775"]
[Result "0-1"]
[Round "07"]
[TimeControl "180+1"]
[Date "2022.04.05"]
[WhiteClock "0:01:32"]
[BlackClock "0:01:17"]

1. e4 {[%clk 0:02:58]}  c5 {[%clk 0:02:46]} 2. Nf3 {[%clk 0:02:48]}  d6 {[%clk 0:02:42]} 3. d4 {[%clk 0:02:47]}  cxd4 {[%clk 0:02:42]} 4. Qxd4 {[%clk 0:02:45]}  Nc6 {[%clk 0:02:40]} 5. Bb5 {[%clk 0:02:44]}  a6 {[%clk 0:02:34]} 6. Bxc6+ {[%clk 0:02:41]}  bxc6 {[%clk 0:02:34]} 7. c4 {[%clk 0:02:42]}  e5 {[%clk 0:02:32]} 8. Qd3 {[%clk 0:02:41]}  Nf6 {[%clk 0:02:32]} 9. Nc3 {[%clk 0:02:40]}  h6 {[%clk 0:02:29]} 10. O-O {[%clk 0:02:34]}  Be6 {[%clk 0:02:29]} 11. b3 {[%clk 0:02:32]}  Qc7 {[%clk 0:02:29]} 12. Bb2 {[%clk 0:02:31]}  Be7 {[%clk 0:02:29]} 13. h3 {[%clk 0:02:32]}  Nh5 {[%clk 0:02:27]} 14. Bc1 {[%clk 0:02:26]}  O-O {[%clk 0:02:23]} 15. Be3 {[%clk 0:02:26]}  f5 {[%clk 0:02:12]} 16. exf5 {[%clk 0:02:24]}  Bxf5 {[%clk 0:02:12]} 17. Qd2 {[%clk 0:02:25]}  Bxh3 {[%clk 0:02:01]} 18. Nxe5 {[%clk 0:02:06]}  dxe5 {[%clk 0:01:52]} 19. gxh3 {[%clk 0:02:05]}  Qc8 {[%clk 0:01:52]} 20. Kh2 {[%clk 0:01:54]}  Rf3 {[%clk 0:01:22]} 21. Rh1 {[%clk 0:01:53]}  Rxh3+ {[%clk 0:01:18]} 22. Kg1 {[%clk 0:01:32]}  Qg4+ {[%clk 0:01:17]} 23. Kf1 {[%clk 0:01:32]}  Rxh1# {[%clk 0:01:17]} 0-1


[Site "https://www.chess.com"]

[Event "Titled Tuesday Blitz April 05 Early 2022"]
[White "Sellitti, Federico"]
[Black "Stribuk, Artiom"]
[WhiteFideId "821829"]
[BlackFideId "13515659"]
[WhiteElo "2555"]
[BlackElo "2795"]
[Result "0-1"]
[Round "07"]
[TimeControl "180+1"]
[Date "2022.04.05"]
[WhiteClock "0:00:03"]
[BlackClock "0:00:10"]

1. e4 {[%clk 0:03:00]}  c5 {[%clk 0:02:57]} 2. Nc3 {[%clk 0:03:00]}  Nc6 {[%clk 0:02:57]} 3. g3 {[%clk 0:03:01]}  g6 {[%clk 0:02:57]} 4. Bg2 {[%clk 0:03:01]}  Bg7 {[%clk 0:02:57]} 5. d3 {[%clk 0:03:02]}  d6 {[%clk 0:02:58]} 6. Be3 {[%clk 0:03:02]}  e5 {[%clk 0:02:58]} 7. Qd2 {[%clk 0:03:03]}  Nd4 {[%clk 0:02:51]} 8. Nd1 {[%clk 0:03:00]}  Ne7 {[%clk 0:02:47]} 9. c3 {[%clk 0:03:00]}  Ne6 {[%clk 0:02:47]} 10. Bh6 {[%clk 0:02:59]}  O-O {[%clk 0:02:46]} 11. Bxg7 {[%clk 0:02:54]}  Kxg7 {[%clk 0:02:46]} 12. Ne3 {[%clk 0:02:55]}  Bd7 {[%clk 0:02:43]} 13. Ne2 {[%clk 0:02:38]}  f5 {[%clk 0:02:19]} 14. f4 {[%clk 0:02:36]}  exf4 {[%clk 0:02:13]} 15. gxf4 {[%clk 0:02:24]}  fxe4 {[%clk 0:02:13]} 16. dxe4 {[%clk 0:02:23]}  Nxf4 {[%clk 0:02:00]} 17. Nxf4 {[%clk 0:02:18]}  Rxf4 {[%clk 0:02:01]} 18. Nf5+ {[%clk 0:01:43]}  Rxf5 {[%clk 0:01:58]} 19. exf5 {[%clk 0:01:43]}  Nxf5 {[%clk 0:01:53]} 20. O-O-O {[%clk 0:01:38]}  Bc6 {[%clk 0:01:50]} 21. Rhf1 {[%clk 0:01:20]}  Qh4 {[%clk 0:01:21]} 22. Bxc6 {[%clk 0:01:06]}  bxc6 {[%clk 0:01:20]} 23. Rxf5 {[%clk 0:01:06]}  gxf5 {[%clk 0:01:20]} 24. Qxd6 {[%clk 0:01:07]}  Qh6+ {[%clk 0:01:01]} 25. Qxh6+ {[%clk 0:01:03]}  Kxh6 {[%clk 0:01:02]} 26. Rd6+ {[%clk 0:00:51]}  Kg5 {[%clk 0:01:01]} 27. Rxc6 {[%clk 0:00:51]}  f4 {[%clk 0:01:02]} 28. Kd2 {[%clk 0:00:35]}  Re8 {[%clk 0:01:02]} 29. Rxc5+ {[%clk 0:00:31]}  Kg4 {[%clk 0:01:02]} 30. Rc7 {[%clk 0:00:31]}  f3 {[%clk 0:01:01]} 31. Rg7+ {[%clk 0:00:19]}  Kh3 {[%clk 0:00:56]} 32. Rxh7+ {[%clk 0:00:19]}  Kg2 {[%clk 0:00:55]} 33. Rg7+ {[%clk 0:00:20]}  Kxh2 {[%clk 0:00:54]} 34. Rf7 {[%clk 0:00:20]}  Kg2 {[%clk 0:00:54]} 35. Rg7+ {[%clk 0:00:20]}  Kf1 {[%clk 0:00:54]} 36. c4 {[%clk 0:00:18]}  a5 {[%clk 0:00:51]} 37. Rf7 {[%clk 0:00:16]}  f2 {[%clk 0:00:51]} 38. a3 {[%clk 0:00:14]}  a4 {[%clk 0:00:49]} 39. c5 {[%clk 0:00:11]}  Rb8 {[%clk 0:00:45]} 40. Kc3 {[%clk 0:00:09]}  Rb3+ {[%clk 0:00:45]} 41. Kc2 {[%clk 0:00:09]}  Ke2 {[%clk 0:00:45]} 42. c6 {[%clk 0:00:06]}  Rb6 {[%clk 0:00:26]} 43. Re7+ {[%clk 0:00:06]}  Kf3 {[%clk 0:00:24]} 44. Rf7+ {[%clk 0:00:06]}  Kg3 {[%clk 0:00:22]} 45. Rg7+ {[%clk 0:00:06]}  Kh4 {[%clk 0:00:18]} 46. Rh7+ {[%clk 0:00:04]}  Kg5 {[%clk 0:00:18]} 47. Rf7 {[%clk 0:00:05]}  Rxc6+ {[%clk 0:00:18]} 48. Kd2 {[%clk 0:00:04]}  Rb6 {[%clk 0:00:10]} 49. Rxf2 {[%clk 0:00:02]}  Rxb2+ {[%clk 0:00:10]} 50. Ke1 {[%clk 0:00:02]}  Rb3 {[%clk 0:00:09]} 51. Ra2 {[%clk 0:00:02]}  Kf4 {[%clk 0:00:09]} 52. Kd2 {[%clk 0:00:03]}  Ke4 {[%clk 0:00:09]} 53. Kc2 {[%clk 0:00:03]}  Kd4 {[%clk 0:00:10]} 54. Ra1 {[%clk 0:00:03]}  Kc4 {[%clk 0:00:10]} 55. Ra2 {[%clk 0:00:03]}  Rh3 {[%clk 0:00:10]} 56. Ra1 {[%clk 0:00:03]}  Rh2+ {[%clk 0:00:10]} 0-1


[Site "https://www.chess.com"]

[Event "Titled Tuesday Blitz April 05 Early 2022"]
[White "Seo, Jung Min"]
[Black "Pajeken, Jakob Leon"]
[WhiteFideId "1734687"]
[BlackFideId "12942839"]
[WhiteElo "2701"]
[BlackElo "2553"]
[Result "0-1"]
[Round "07"]
[TimeControl "180+1"]
[Date "2022.04.05"]
[WhiteClock "0:00:57"]
[BlackClock "0:01:25"]

1. d4 {[%clk 0:03:00]}  d5 {[%clk 0:02:59]} 2. c4 {[%clk 0:02:59]}  dxc4 {[%clk 0:03:00]} 3. e4 {[%clk 0:02:57]}  Nf6 {[%clk 0:03:01]} 4. e5 {[%clk 0:02:43]}  Nd5 {[%clk 0:03:00]} 5. Bxc4 {[%clk 0:02:43]}  Bf5 {[%clk 0:03:01]} 6. Ne2 {[%clk 0:02:41]}  e6 {[%clk 0:02:54]} 7. O-O {[%clk 0:02:41]}  Nb6 {[%clk 0:02:51]} 8. Bb3 {[%clk 0:02:40]}  Nc6 {[%clk 0:02:50]} 9. Nbc3 {[%clk 0:02:38]}  Qd7 {[%clk 0:02:49]} 10. Be3 {[%clk 0:02:37]}  O-O-O {[%clk 0:02:50]} 11. Rc1 {[%clk 0:02:34]}  Kb8 {[%clk 0:02:49]} 12. a3 {[%clk 0:02:28]}  Qe8 {[%clk 0:02:46]} 13. Qe1 {[%clk 0:02:22]}  h5 {[%clk 0:02:44]} 14. Ba2 {[%clk 0:02:18]}  h4 {[%clk 0:02:40]} 15. b4 {[%clk 0:02:18]}  f6 {[%clk 0:02:38]} 16. exf6 {[%clk 0:02:12]}  gxf6 {[%clk 0:02:37]} 17. Rd1 {[%clk 0:02:12]}  Ne7 {[%clk 0:02:24]} 18. Nf4 {[%clk 0:02:10]}  Ned5 {[%clk 0:02:19]} 19. Ncxd5 {[%clk 0:02:08]}  Nxd5 {[%clk 0:02:20]} 20. Nxd5 {[%clk 0:02:07]}  exd5 {[%clk 0:02:19]} 21. Bf4 {[%clk 0:02:07]}  Qg6 {[%clk 0:02:17]} 22. Qc3 {[%clk 0:01:57]}  Bd6 {[%clk 0:02:09]} 23. Bxd6 {[%clk 0:01:57]}  Rxd6 {[%clk 0:02:10]} 24. Bb1 {[%clk 0:01:55]}  h3 {[%clk 0:02:03]} 25. g3 {[%clk 0:01:54]}  Bxb1 {[%clk 0:02:03]} 26. Rxb1 {[%clk 0:01:54]}  Qe4 {[%clk 0:02:02]} 27. f3 {[%clk 0:01:54]}  Qf5 {[%clk 0:02:01]} 28. Rbe1 {[%clk 0:01:53]}  Rc6 {[%clk 0:01:52]} 29. Qe3 {[%clk 0:01:48]}  a6 {[%clk 0:01:50]} 30. Rf2 {[%clk 0:01:41]}  Ka7 {[%clk 0:01:37]} 31. g4 {[%clk 0:01:32]}  Qg6 {[%clk 0:01:36]} 32. Rd2 {[%clk 0:01:30]}  f5 {[%clk 0:01:35]} 33. g5 {[%clk 0:01:30]}  Re8 {[%clk 0:01:30]} 34. Qf4 {[%clk 0:00:57]}  Rxe1+ {[%clk 0:01:25]} 0-1


[Site "https://www.chess.com"]

[Event "Titled Tuesday Blitz April 05 Early 2022"]
[White "Silva, Kaua Marques"]
[Black "Maevsky, Nikolay"]
[WhiteFideId "22701168"]
[BlackFideId "4198220"]
[WhiteElo "2071"]
[BlackElo "2126"]
[Result "0-1"]
[Round "07"]
[TimeControl "180+1"]
[Date "2022.04.05"]
[WhiteClock "0:00:06"]
[BlackClock "0:00:04"]

1. e4 {[%clk 0:03:00]}  c6 {[%clk 0:02:14]} 2. d4 {[%clk 0:02:59]}  d5 {[%clk 0:02:14]} 3. e5 {[%clk 0:03:00]}  Bf5 {[%clk 0:02:15]} 4. Be2 {[%clk 0:02:53]}  e6 {[%clk 0:02:13]} 5. Nf3 {[%clk 0:02:54]}  Ne7 {[%clk 0:02:12]} 6. O-O {[%clk 0:02:54]}  Nd7 {[%clk 0:02:12]} 7. a4 {[%clk 0:02:54]}  Bg6 {[%clk 0:02:12]} 8. a5 {[%clk 0:02:53]}  a6 {[%clk 0:02:13]} 9. Bd2 {[%clk 0:02:53]}  c5 {[%clk 0:02:13]} 10. c4 {[%clk 0:02:48]}  dxc4 {[%clk 0:02:10]} 11. Na3 {[%clk 0:02:45]}  Nc6 {[%clk 0:02:08]} 12. Nxc4 {[%clk 0:02:29]}  cxd4 {[%clk 0:02:08]} 13. Re1 {[%clk 0:02:26]}  Be7 {[%clk 0:02:06]} 14. Nd6+ {[%clk 0:02:25]}  Bxd6 {[%clk 0:02:06]} 15. exd6 {[%clk 0:02:26]}  O-O {[%clk 0:02:06]} 16. Bc4 {[%clk 0:02:14]}  e5 {[%clk 0:02:05]} 17. Bg5 {[%clk 0:02:12]}  Qb8 {[%clk 0:02:00]} 18. Be7 {[%clk 0:01:44]}  Re8 {[%clk 0:02:00]} 19. Qa4 {[%clk 0:01:38]}  Nc5 {[%clk 0:01:48]} 20. Qa3 {[%clk 0:01:38]}  Ne4 {[%clk 0:01:37]} 21. Bd5 {[%clk 0:01:31]}  Nxe7 {[%clk 0:01:12]} 22. dxe7 {[%clk 0:01:28]}  Nf6 {[%clk 0:01:07]} 23. Rxe5 {[%clk 0:01:27]}  Qc7 {[%clk 0:00:59]} 24. Rae1 {[%clk 0:01:22]}  Rac8 {[%clk 0:00:54]} 25. h3 {[%clk 0:01:19]}  d3 {[%clk 0:00:47]} 26. Bb3 {[%clk 0:01:13]}  Qd7 {[%clk 0:00:24]} 27. Ba4 {[%clk 0:01:10]}  Rc6 {[%clk 0:00:19]} 28. R5e3 {[%clk 0:01:04]}  d2 {[%clk 0:00:17]} 29. Rd1 {[%clk 0:01:04]}  Rc1 {[%clk 0:00:15]} 30. Bxd7 {[%clk 0:00:50]}  Rxd1+ {[%clk 0:00:15]} 31. Kh2 {[%clk 0:00:50]}  Rh1+ {[%clk 0:00:13]} 32. Kxh1 {[%clk 0:00:50]}  d1=Q+ {[%clk 0:00:13]} 33. Re1 {[%clk 0:00:46]}  Qxd7 {[%clk 0:00:14]} 34. Kh2 {[%clk 0:00:24]}  Be4 {[%clk 0:00:13]} 35. Ne5 {[%clk 0:00:21]}  Qxe7 {[%clk 0:00:10]} 36. Qxe7 {[%clk 0:00:20]}  Rxe7 {[%clk 0:00:10]} 37. Nc4 {[%clk 0:00:21]}  Kf8 {[%clk 0:00:09]} 38. Nb6 {[%clk 0:00:20]}  Bc6 {[%clk 0:00:08]} 39. Rd1 {[%clk 0:00:20]}  Ke8 {[%clk 0:00:08]} 40. f3 {[%clk 0:00:21]}  Nd7 {[%clk 0:00:09]} 41. Nc4 {[%clk 0:00:20]}  Kd8 {[%clk 0:00:08]} 42. Nd6 {[%clk 0:00:21]}  Kc7 {[%clk 0:00:08]} 43. b4 {[%clk 0:00:22]}  f6 {[%clk 0:00:08]} 44. Kg3 {[%clk 0:00:21]}  g6 {[%clk 0:00:09]} 45. Kf2 {[%clk 0:00:21]}  Ne5 {[%clk 0:00:09]} 46. Rd2 {[%clk 0:00:20]}  f5 {[%clk 0:00:09]} 47. f4 {[%clk 0:00:17]}  Nf7 {[%clk 0:00:09]} 48. Nc4 {[%clk 0:00:17]}  Bb5 {[%clk 0:00:09]} 49. Nb6 {[%clk 0:00:15]}  Bc6 {[%clk 0:00:03]} 50. Rc2 {[%clk 0:00:15]}  Nd8 {[%clk 0:00:03]} 51. Nd5+ {[%clk 0:00:15]}  Kd6 {[%clk 0:00:04]} 52. Nxe7 {[%clk 0:00:16]}  Kxe7 {[%clk 0:00:04]} 53. Re2+ {[%clk 0:00:17]}  Ne6 {[%clk 0:00:05]} 54. g4 {[%clk 0:00:17]}  fxg4 {[%clk 0:00:04]} 55. hxg4 {[%clk 0:00:17]}  Kf6 {[%clk 0:00:04]} 56. Kg3 {[%clk 0:00:18]}  Nd4 {[%clk 0:00:04]} 57. Rd2 {[%clk 0:00:18]}  Ne6 {[%clk 0:00:04]} 58. Rd6 {[%clk 0:00:18]}  h5 {[%clk 0:00:04]} 59. gxh5 {[%clk 0:00:16]}  gxh5 {[%clk 0:00:04]} 60. Rd1 {[%clk 0:00:14]}  Kf5 {[%clk 0:00:04]} 61. Rf1 {[%clk 0:00:11]}  Be4 {[%clk 0:00:04]} 62. Rf2 {[%clk 0:00:11]}  Nd4 {[%clk 0:00:04]} 63. Kh4 {[%clk 0:00:10]}  Bd5 {[%clk 0:00:03]} 64. Rb2 {[%clk 0:00:09]}  Ke4 {[%clk 0:00:03]} 65. Kxh5 {[%clk 0:00:10]}  Kxf4 {[%clk 0:00:03]} 66. Kg6 {[%clk 0:00:10]}  Ke5 {[%clk 0:00:03]} 67. Kg7 {[%clk 0:00:10]}  Bc6 {[%clk 0:00:04]} 68. Kf7 {[%clk 0:00:10]}  Kd5 {[%clk 0:00:04]} 69. Ke7 {[%clk 0:00:10]}  Kc4 {[%clk 0:00:05]} 70. Kd6 {[%clk 0:00:11]}  Kc3 {[%clk 0:00:05]} 71. Rb1 {[%clk 0:00:10]}  Nb3 {[%clk 0:00:05]} 72. Kc7 {[%clk 0:00:10]}  Kxb4 {[%clk 0:00:05]} 73. Kb6 {[%clk 0:00:11]}  Ka4 {[%clk 0:00:06]} 74. Rb2 {[%clk 0:00:10]}  Ka3 {[%clk 0:00:05]} 75. Rh2 {[%clk 0:00:09]}  Nd4 {[%clk 0:00:05]} 76. Rh3+ {[%clk 0:00:09]}  Kb4 {[%clk 0:00:05]} 77. Rh4 {[%clk 0:00:10]}  Kc4 {[%clk 0:00:05]} 78. Rg4 {[%clk 0:00:09]}  Kd5 {[%clk 0:00:05]} 79. Rh4 {[%clk 0:00:09]}  Ne6 {[%clk 0:00:06]} 80. Rh5+ {[%clk 0:00:09]}  Kd6 {[%clk 0:00:06]} 81. Rh1 {[%clk 0:00:09]}  Nf4 {[%clk 0:00:05]} 82. Rd1+ {[%clk 0:00:09]}  Nd5+ {[%clk 0:00:06]} 83. Ka7 {[%clk 0:00:10]}  Kc5 {[%clk 0:00:06]} 84. Rb1 {[%clk 0:00:10]}  Nb4 {[%clk 0:00:06]} 85. Ra1 {[%clk 0:00:07]}  Kb5 {[%clk 0:00:06]} 86. Kb8 {[%clk 0:00:07]}  Bd5 {[%clk 0:00:06]} 87. Ra3 {[%clk 0:00:06]}  Bc6 {[%clk 0:00:06]} 88. Kc7 {[%clk 0:00:06]}  Nd5+ {[%clk 0:00:04]} 89. Kd6 {[%clk 0:00:06]}  Kb4 {[%clk 0:00:04]} 90. Ra1 {[%clk 0:00:06]}  Nc3 {[%clk 0:00:05]} 91. Ke5 {[%clk 0:00:06]}  Na4 {[%clk 0:00:05]} 92. Kd4 {[%clk 0:00:06]}  Kxa5 {[%clk 0:00:05]} 93. Kc4 {[%clk 0:00:06]}  b5+ {[%clk 0:00:05]} 94. Kb3 {[%clk 0:00:07]}  Bd5+ {[%clk 0:00:04]} 95. Ka3 {[%clk 0:00:06]}  b4# {[%clk 0:00:04]} 0-1


[Site "https://www.chess.com"]

[Event "Titled Tuesday Blitz April 05 Early 2022"]
[White "Silva, Miguel Antonio Neto"]
[Black "Kozak, Antoni"]
[WhiteFideId "1911929"]
[BlackFideId "21832030"]
[WhiteElo "2204"]
[BlackElo "2236"]
[Result "1/2-1/2"]
[Round "07"]
[TimeControl "180+1"]
[Date "2022.04.05"]
[WhiteClock "0:00:17"]
[BlackClock "0:00:10"]

1. Nf3 {[%clk 0:03:00]}  Nf6 {[%clk 0:02:55]} 2. c4 {[%clk 0:02:58]}  e6 {[%clk 0:02:55]} 3. g3 {[%clk 0:02:56]}  c5 {[%clk 0:02:52]} 4. Bg2 {[%clk 0:02:55]}  Nc6 {[%clk 0:02:52]} 5. O-O {[%clk 0:02:55]}  d6 {[%clk 0:02:50]} 6. Nc3 {[%clk 0:02:54]}  Be7 {[%clk 0:02:50]} 7. d4 {[%clk 0:02:54]}  cxd4 {[%clk 0:02:50]} 8. Nxd4 {[%clk 0:02:55]}  Bd7 {[%clk 0:02:51]} 9. Ndb5 {[%clk 0:02:53]}  Qb8 {[%clk 0:02:42]} 10. Bf4 {[%clk 0:02:52]}  Ne5 {[%clk 0:02:14]} 11. Qb3 {[%clk 0:02:31]}  Bc6 {[%clk 0:02:03]} 12. Rfd1 {[%clk 0:02:22]}  Bxg2 {[%clk 0:02:01]} 13. Kxg2 {[%clk 0:02:10]}  a6 {[%clk 0:02:01]} 14. Nd4 {[%clk 0:02:01]}  Qc7 {[%clk 0:01:59]} 15. Bxe5 {[%clk 0:01:48]}  dxe5 {[%clk 0:01:58]} 16. Nf3 {[%clk 0:01:49]}  O-O {[%clk 0:01:55]} 17. Rac1 {[%clk 0:01:35]}  Nd7 {[%clk 0:01:49]} 18. Na4 {[%clk 0:01:26]}  Rad8 {[%clk 0:01:39]} 19. Qe3 {[%clk 0:01:16]}  f5 {[%clk 0:01:33]} 20. b3 {[%clk 0:01:14]}  Rfe8 {[%clk 0:01:18]} 21. Rd2 {[%clk 0:01:10]}  Bb4 {[%clk 0:01:14]} 22. Rdd1 {[%clk 0:01:08]}  e4 {[%clk 0:01:06]} 23. Ng5 {[%clk 0:01:05]}  h6 {[%clk 0:00:59]} 24. Nh3 {[%clk 0:01:05]}  Nf6 {[%clk 0:00:40]} 25. Nf4 {[%clk 0:00:58]}  Kf7 {[%clk 0:00:40]} 26. h4 {[%clk 0:00:41]}  Ba3 {[%clk 0:00:29]} 27. Rb1 {[%clk 0:00:40]}  Bd6 {[%clk 0:00:28]} 28. Nh3 {[%clk 0:00:36]}  b5 {[%clk 0:00:25]} 29. cxb5 {[%clk 0:00:34]}  axb5 {[%clk 0:00:25]} 30. Rbc1 {[%clk 0:00:34]}  Qa5 {[%clk 0:00:19]} 31. Nc5 {[%clk 0:00:33]}  Bxc5 {[%clk 0:00:18]} 32. Qxc5 {[%clk 0:00:31]}  Rxd1 {[%clk 0:00:17]} 33. Rxd1 {[%clk 0:00:30]}  Qxa2 {[%clk 0:00:17]} 34. Nf4 {[%clk 0:00:28]}  Qxb3 {[%clk 0:00:16]} 35. Rc1 {[%clk 0:00:20]}  Re7 {[%clk 0:00:10]} 36. h5 {[%clk 0:00:20]}  e3 {[%clk 0:00:08]} 37. f3 {[%clk 0:00:20]}  b4 {[%clk 0:00:09]} 38. Qd6 {[%clk 0:00:18]}  Qb2 {[%clk 0:00:09]} 39. Rc7 {[%clk 0:00:18]}  Rxc7 {[%clk 0:00:08]} 40. Qxc7+ {[%clk 0:00:19]}  Kg8 {[%clk 0:00:08]} 41. Nxe6 {[%clk 0:00:19]}  Qxe2+ {[%clk 0:00:08]} 42. Kh3 {[%clk 0:00:19]}  Qf1+ {[%clk 0:00:08]} 43. Kh2 {[%clk 0:00:19]}  Qf2+ {[%clk 0:00:09]} 44. Kh3 {[%clk 0:00:19]}  Qf1+ {[%clk 0:00:08]} 45. Kh2 {[%clk 0:00:20]}  Nxh5 {[%clk 0:00:08]} 46. Qd8+ {[%clk 0:00:19]}  Kh7 {[%clk 0:00:08]} 47. Nf8+ {[%clk 0:00:19]}  Kg8 {[%clk 0:00:08]} 48. Ng6+ {[%clk 0:00:19]}  Kf7 {[%clk 0:00:08]} 49. Nh8+ {[%clk 0:00:19]}  Ke6 {[%clk 0:00:08]} 50. Qe8+ {[%clk 0:00:19]}  Kd5 {[%clk 0:00:08]} 51. Qxh5 {[%clk 0:00:20]}  Qf2+ {[%clk 0:00:08]} 52. Kh3 {[%clk 0:00:21]}  e2 {[%clk 0:00:09]} 53. Qxf5+ {[%clk 0:00:20]}  Kd4 {[%clk 0:00:09]} 54. Qd7+ {[%clk 0:00:20]}  Kc3 {[%clk 0:00:09]} 55. Qc6+ {[%clk 0:00:20]}  Kd2 {[%clk 0:00:09]} 56. Qd5+ {[%clk 0:00:20]}  Kc3 {[%clk 0:00:10]} 57. Qc6+ {[%clk 0:00:19]}  Kd3 {[%clk 0:00:10]} 58. Qb5+ {[%clk 0:00:19]}  Kc2 {[%clk 0:00:10]} 59. Qc4+ {[%clk 0:00:19]}  Kd1 {[%clk 0:00:10]} 60. Qb3+ {[%clk 0:00:19]}  Kd2 {[%clk 0:00:10]} 61. Qxb4+ {[%clk 0:00:19]}  Ke3 {[%clk 0:00:10]} 62. Qb6+ {[%clk 0:00:18]}  Kxf3 {[%clk 0:00:10]} 63. Qc6+ {[%clk 0:00:16]}  Ke3 {[%clk 0:00:08]} 64. Qc5+ {[%clk 0:00:16]}  Kf3 {[%clk 0:00:08]} 65. Qf5+ {[%clk 0:00:16]}  Ke3 {[%clk 0:00:09]} 66. Qc5+ {[%clk 0:00:16]}  Kf3 {[%clk 0:00:09]} 67. Qf5+ {[%clk 0:00:16]}  Ke3 {[%clk 0:00:10]} 68. Qc5+ {[%clk 0:00:17]} 1/2-1/2


[Site "https://www.chess.com"]

[Event "Titled Tuesday Blitz April 05 Early 2022"]
[White "Simonovic, Miroslav"]
[Black "Ardila, Oscar Humberto"]
[WhiteFideId "919152"]
[BlackFideId "4404742"]
[WhiteElo "2043"]
[BlackElo "1983"]
[Result "0-1"]
[Round "07"]
[TimeControl "180+1"]
[Date "2022.04.05"]
[WhiteClock "0:00:01"]
[BlackClock "0:00:26"]

1. d4 {[%clk 0:03:00]}  Nf6 {[%clk 0:02:59]} 2. Bg5 {[%clk 0:03:01]}  e6 {[%clk 0:02:59]} 3. e4 {[%clk 0:03:00]}  Be7 {[%clk 0:02:59]} 4. Bxf6 {[%clk 0:03:01]}  Bxf6 {[%clk 0:02:59]} 5. e5 {[%clk 0:03:01]}  Be7 {[%clk 0:02:59]} 6. Qg4 {[%clk 0:03:02]}  g6 {[%clk 0:02:59]} 7. Bd3 {[%clk 0:03:02]}  d6 {[%clk 0:02:56]} 8. Nf3 {[%clk 0:03:02]}  dxe5 {[%clk 0:02:56]} 9. dxe5 {[%clk 0:03:03]}  Nc6 {[%clk 0:02:54]} 10. a3 {[%clk 0:03:00]}  b6 {[%clk 0:02:49]} 11. Nbd2 {[%clk 0:02:55]}  Bb7 {[%clk 0:02:49]} 12. O-O-O {[%clk 0:02:56]}  O-O {[%clk 0:02:44]} 13. h4 {[%clk 0:02:54]}  h5 {[%clk 0:02:40]} 14. Qg3 {[%clk 0:02:54]}  Kg7 {[%clk 0:02:39]} 15. Ne4 {[%clk 0:02:42]}  Nd4 {[%clk 0:02:23]} 16. Nxd4 {[%clk 0:02:03]}  Qxd4 {[%clk 0:02:21]} 17. Rhe1 {[%clk 0:01:23]}  Qa4 {[%clk 0:02:09]} 18. Nf6 {[%clk 0:01:06]}  Bxf6 {[%clk 0:01:53]} 19. exf6+ {[%clk 0:01:07]}  Kxf6 {[%clk 0:01:54]} 20. Qe5+ {[%clk 0:00:54]}  Ke7 {[%clk 0:01:53]} 21. Qxc7+ {[%clk 0:00:55]}  Kf6 {[%clk 0:01:53]} 22. Qxb7 {[%clk 0:00:47]}  Qxh4 {[%clk 0:01:53]} 23. Qf3+ {[%clk 0:00:40]}  Kg7 {[%clk 0:01:52]} 24. Rh1 {[%clk 0:00:39]}  Qg5+ {[%clk 0:01:50]} 25. Kb1 {[%clk 0:00:39]}  Rac8 {[%clk 0:01:49]} 26. Rdg1 {[%clk 0:00:32]}  a5 {[%clk 0:01:40]} 27. g4 {[%clk 0:00:31]}  h4 {[%clk 0:01:40]} 28. Rh3 {[%clk 0:00:19]}  Rh8 {[%clk 0:01:38]} 29. Rgh1 {[%clk 0:00:19]}  Rcd8 {[%clk 0:01:25]} 30. Qe2 {[%clk 0:00:18]}  Rd4 {[%clk 0:01:19]} 31. f3 {[%clk 0:00:13]}  Rf4 {[%clk 0:01:16]} 32. Be4 {[%clk 0:00:10]}  Qf6 {[%clk 0:01:14]} 33. Qb5 {[%clk 0:00:09]}  g5 {[%clk 0:01:10]} 34. Qxb6 {[%clk 0:00:09]}  Rd8 {[%clk 0:01:07]} 35. Qxa5 {[%clk 0:00:08]}  Rb8 {[%clk 0:01:05]} 36. b3 {[%clk 0:00:06]}  Qe7 {[%clk 0:00:59]} 37. Kb2 {[%clk 0:00:05]}  e5 {[%clk 0:00:52]} 38. Qc3 {[%clk 0:00:04]}  Rf6 {[%clk 0:00:47]} 39. b4 {[%clk 0:00:05]}  Ra6 {[%clk 0:00:46]} 40. Rxh4 {[%clk 0:00:04]}  gxh4 {[%clk 0:00:32]} 41. Qe1 {[%clk 0:00:03]}  Rh8 {[%clk 0:00:30]} 42. Qe3 {[%clk 0:00:01]}  Qa7 {[%clk 0:00:26]} 0-1


[Site "https://www.chess.com"]